[Event "MCCT Chessable Masters 2022"]
[Site "Online"]
[Date "2022.05.16"]
[Round "9.1"]
[White "Jones, Gawain C B"]
[Black "Carlsen, Magnus"]
[Result "0-1"]
[ECO "B06"]
[WhiteElo "2669"]
[BlackElo "2864"]
[Annotator "TA"]
[PlyCount "86"]
[EventDate "2022.05.19"]
[EventType "tourn"]
[EventCountry "NET"]
[SourceTitle "playchess.com"]
[Source "ChessBase"]
[SourceQuality "1"]
[TimeControl "900+10"]

{[%evp 9,86,41,51,22,21,39,42,32,38,0,0,0,60,0,0,0,0,0,0,0,-1,-38,-18,-16,0,0,0,0,0,0,0,0,0,0,0,-386,-399,-568,-562,-564,-564,-553,-551,-552,-520,-478,-406,-743,-734,-718,-697,-820,-827,-823,-813,-792,-782,-855,-810,-908,-888,-1174,-1072,-1918,-1916,-1681,-1663,-29972,-29974,-29973,-29975,-29974,-29975,-29976,-29977,-29977,-29978,-29952,-4766]} 1. e4 {[%emt 0:00:00]} g6 {[%emt 0:00:00]} 2. d4 {[%emt 0:00:03]} Bg7 {[%emt 0:00:20]} 3. Nc3 {[%emt 0:00:03]} d6 {[%emt 0:00:03]} 4. Be3 {[%emt 0:00:07]} a6 {[%emt 0:00:03]} 5. Qd2 {[%emt 0:00:27]} b5 {[%emt 0:00:09]} 6. h4 {[%emt 0:00:31] B06: Modern Defence.} Nf6 {[%emt 0:00:30]} 7. f3 {[%emt 0:00:06]} h5 {[%emt 0:00:03]} 8. O-O-O {[%emt 0:00:14] White is slightly better.} b4 {[%emt 0:00:09]} 9. Nd5 {[%emt 0:01:27]} Nxd5 {[%emt 0:01:09]} 10. exd5 {[%emt 0:00:02] [#]} a5 $146 {[%emt 0:01:54]} ({Better is} 10... c6 $1 $11) ({Predecessor:} 10... c6 11. dxc6 Nxc6 12. d5 Ne5 13. f4 Ng4 14. Bd4 Bxd4 15. Qxd4 O-O 16. Nf3 Qa5 {½-½ (64) Agopov,M (2430)-Nabaty,T (2649) Terme Catez 2021}) 11. Re1 {[%emt 0:01:08]} ({White should try} 11. Nh3 $14) 11... c6 $1 $11 {[%emt 0:05:16]} 12. dxc6 {[%emt 0:04:00]} Nxc6 {[%emt 0:00:03]} 13. Bb5 {[%emt 0:01:13]} Bd7 {[%emt 0:00:17]} 14. Bg5 {[%emt 0:02:57] Threatens to win with Bxc6.} Ra7 {[%emt 0:01:14]} 15. Nh3 {[%emt 0:00:39][%cal Bg1h3,Bh3f4,Bf4d5][%mdl 32]} a4 {[%emt 0:01:45]} (15... Qb8 $5 {[%cal Rb8b5]} 16. Ba4 O-O $11) 16. Nf4 {[%emt 0:00:39]} b3 {[%emt 0:00:39]} 17. a3 {[%emt 0:00:09]} (17. axb3 axb3 18. Qc3 Bxd4) 17... bxc2 {[%emt 0:01:53]} 18. Nd5 $1 {[%emt 0:01:38] Hoping for Bxc6.} (18. Qxc2 O-O $1 19. Bxc6 Bxc6 $15) 18... Nxd4 {[%emt 0:00:18] The board is on fire.} 19. Bxe7 {[%emt 0:01:38]} ({But not} 19. Rxe7+ {[#]} Qxe7 $3 {[%mdl 512]} 20. Re1 Nb3+ 21. Kxc2 Bxb5 $1 $17) 19... Nb3+ $40 {[%emt 0:01:30][%cal Bd4b3,Bb3d2,Bd2c4,Bc4b2][%mdl 160] Black mounts an attack.} 20. Kxc2 {[%emt 0:00:02]} Qc8+ {[%emt 0:00:03]} 21. Kd1 {[%emt 0:00:22]} Bxb5 {[%emt 0:00:05]} (21... Nxd2 $2 22. Bxd6+ Kd8 23. Be7+ Ke8 24. Bd6+ Kd8 25. Be7+ Ke8 26. Bc5+ Kd8 27. Be7+ $18 (27. Bb6+ Rc7 $18)) 22. Bxd6+ $4 {[%emt 0:00:47][%mdl 8192] White is on the road to losing.} (22. Qg5 $1 $11 {and White has nothing to worry.} Nd4 23. Bf6+ (23. Nf6+ Bxf6 24. Bxf6+ Be2+ 25. Rxe2+ Nxe2 $11) 23... Kf8 24. Bxg7+ Kxg7 25. Qf6+ Kh7 26. Qxd4) 22... Kd8 $19 {[%emt 0:00:07]} 23. Be7+ {[%emt 0:00:26] [#]} (23. Qg5+ {might work better.} f6 24. Qf4) 23... Rxe7 $1 {[%emt 0:00:05]} 24. Nxe7+ {[%emt 0:00:02]} Nxd2 {[%emt 0:00:02]} 25. Nxc8 {[%emt 0:00:03] Nd6 is the strong threat.} Nc4 {[%emt 0:00:05] Inhibits Nd6.} 26. Na7 {[%emt 0:00:05]} Bd7 {[%emt 0:00:14]} 27. Re4 {[%emt 0:00:15]} Nxb2+ {[%emt 0:00:20]} 28. Ke2 {[%emt 0:00:01]} (28. Kd2 $142 Re8 29. Rb4) 28... f5 {[%emt 0:00:48][%cal Bf7f5,Bf5f4][%mdl 32]} 29. Rb4 {[%emt 0:00:13]} Bc3 {[%emt 0:00:08]} 30. Rb8+ {[%emt 0:00:10]} Kc7 {[%emt 0:00:02]} 31. Rxh8 {[%emt 0:00:05]} Bxh8 {[%emt 0:00:00]} 32. Rc1+ {[%emt 0:00:35]} Kb7 {[%emt 0:00:00]} 33. Rc2 {[%emt 0:00:09]} f4 {[%emt 0:00:31] And now ...Bf5 would win.} 34. Rd2 {[%emt 0:00:10]} Be6 {[%emt 0:00:04] Strongly threatening ...Bc4+.} ({Weaker is} 34... Kxa7 35. Rxd7+ Kb6 36. Rd6+ Kc5 37. Rxg6 $11) 35. Rd8 {[%emt 0:00:09]} Bc3 {[%emt 0:00:07]} 36. Rd6 {[%emt 0:00:09]} Bc4+ {[%emt 0:00:02]} 37. Kf2 {[%emt 0:00:03]} Kxa7 {[%emt 0:00:09]} 38. Rxg6 {[%emt 0:00:01]} Nd3+ {[%emt 0:00:01] Black mates.} 39. Kg1 {[%emt 0:00:01]} Bb2 {[%emt 0:00:09]} 40. Rg5 {[%emt 0:00:02]} Kb6 {[%emt 0:00:09]} 41. Rxh5 {[%emt 0:00:04]} Bxa3 {[%emt 0:00:01]} 42. Rh8 {[%emt 0:00:16]} Bc5+ {[%emt 0:00:01]} 43. Kh2 {[%emt 0:00:21]} a3 {[%emt 0:00:00] Weighted Error Value: White=0.72/Black=0.07 (flawless)} 0-1

[Event "MCCT Chessable Masters 2022"]
[Site "Online"]
[Date "2022.05.16"]
[Round "9.2"]
[White "Anton Guijarro, David"]
[Black "Harikrishna, Pentala"]
[Result "1/2-1/2"]
[ECO "C77"]
[WhiteElo "2691"]
[BlackElo "2705"]
[Annotator "TA"]
[PlyCount "104"]
[EventDate "2022.05.19"]
[EventType "tourn"]
[EventCountry "NET"]
[SourceTitle "playchess.com"]
[Source "ChessBase"]
[SourceQuality "1"]
[TimeControl "900+10"]

{[%evp 9,104,19,21,0,8,0,0,0,0,4,6,10,6,9,14,13,33,18,16,17,35,19,28,24,36,36,36,37,40,34,38,2,16,17,46,47,52,54,65,53,52,16,51,36,42,42,49,47,51,51,51,51,66,60,75,75,75,75,75,72,72,8,8,15,91,91,97,97,97,97,106,89,91,79,91,91,91,31,31,31,42,23,23,31,31,31,31,31,31,31,31,0,31,0,31,0,31]} 1. e4 {[%emt 0:00:00]} e5 {[%emt 0:00:00]} 2. Nf3 {[%emt 0:00:05]} Nc6 {[%emt 0:00:02]} 3. Bb5 {[%emt 0:00:03]} a6 {[%emt 0:00:02]} 4. Ba4 {[%emt 0:00:02]} Nf6 {[%emt 0:00:02]} 5. d3 {[%emt 0:00:03]} Bc5 {[%emt 0:00:10]} 6. Nc3 {[%emt 0:00:15] C77: Ruy Lopez: 3...a6 4 Ba4 Nf6, unusual lines.} d6 $1 {[%emt 0:01:06] 6...d6 scores better than 6...b5.} 7. Bxc6+ {[%emt 0:00:18]} bxc6 {[%emt 0:00:01]} 8. Be3 {[%emt 0:00:04]} Bb4 {[%emt 0:00:25] [#]} 9. O-O $146 {[%emt 0:00:14]} ({Predecessor:} 9. Qd2 d5 10. Nxe5 d4 11. Nxc6 dxc3 12. bxc3 Qd6 13. Nxb4 a5 14. Nd5 Nxd5 15. exd5 Qxd5 {0-1 (41) Lazsadi,K (1399)-Pasti,Z (1249) Zalakaros 2018}) 9... Bxc3 {[%emt 0:00:06]} 10. bxc3 {[%emt 0:00:01]} h6 {[%emt 0:00:54]} 11. h3 {[%emt 0:00:28]} O-O {[%emt 0:00:03]} 12. Nd2 {[%emt 0:00:23]} d5 {[%emt 0:00:26]} 13. Qf3 {[%emt 0:00:15]} Re8 {[%emt 0:00:16]} 14. Nb3 {[%emt 0:00:29]} Be6 {[%emt 0:00:36]} 15. Nc5 {[%emt 0:01:06]} dxe4 {[%emt 0:00:59]} 16. Nxe4 {[%emt 0:00:56]} Nxe4 {[%emt 0:00:26]} 17. Qxe4 {[%emt 0:00:14]} Qd5 {[%emt 0:00:41]} 18. Qh4 {[%emt 0:00:57]} Bf5 {[%emt 0:00:52]} 19. Qg3 {[%emt 0:03:06]} Re6 {[%emt 0:01:02]} 20. c4 {[%emt 0:01:06]} Qd7 {[%emt 0:00:11] [#] And now ...Rg6 would win.} 21. Kh2 {[%emt 0:00:29]} Rae8 {[%emt 0:02:34]} 22. f3 {[%emt 0:01:28]} Bg6 {[%emt 0:00:55]} 23. Bc5 {[%emt 0:01:48]} Kh7 {[%emt 0:00:39]} 24. Rae1 {[%emt 0:00:17]} f5 {[%emt 0:00:21]} 25. Rf2 {[%emt 0:00:57]} Qf7 {[%emt 0:01:01]} 26. Rfe2 {[%emt 0:01:38]} e4 {[%emt 0:00:05]} 27. f4 {[%emt 0:00:16]} Bh5 {[%emt 0:02:15]} 28. Re3 {[%emt 0:00:04]} exd3 {[%emt 0:00:06]} 29. cxd3 {[%emt 0:00:06]} Rxe3 {[%emt 0:00:02]} 30. Rxe3 {[%emt 0:00:02]} Rxe3 {[%emt 0:00:11]} 31. Qxe3 {[%emt 0:00:08]} Qe8 {[%emt 0:00:02]} 32. Qxe8 {[%emt 0:00:26]} Bxe8 $16 {[%emt 0:00:02][%mdl 4096] Endgame KB-KB} 33. Kg3 {[%emt 0:00:01]} Kg8 {[%emt 0:00:47]} 34. Kh4 {[%emt 0:01:09]} Kf7 {[%emt 0:00:20]} 35. g4 {[%emt 0:00:14]} ({White should try} 35. Be3 $16) 35... fxg4 $11 {[%emt 0:01:09]} 36. hxg4 {[%emt 0:00:06]} ({Of course not} 36. Kxg4 Bd7+ 37. Kg3 Bf5 $15) 36... g5+ {[%emt 0:00:16]} (36... g6 $11 {keeps the balance.}) 37. fxg5 $16 {[%emt 0:00:09] White is more active.} Kg6 {[%emt 0:00:01]} 38. gxh6 {[%emt 0:00:25]} Kxh6 {[%emt 0:00:01]} 39. Be3+ {[%emt 0:00:29]} Kh7 {[%emt 0:00:07]} 40. Kg5 {[%emt 0:00:24]} Bg6 {[%emt 0:00:51]} 41. Kf6 {[%emt 0:00:23]} Bxd3 {[%emt 0:00:09]} 42. c5 {[%emt 0:00:03]} a5 {[%emt 0:00:12] [#]} 43. a3 {[%emt 0:00:27]} ({Better is} 43. a4 $1 $16) 43... a4 $14 {[%emt 0:00:10]} 44. g5 {[%emt 0:00:04]} Be4 {[%emt 0:00:14]} 45. Ke7 {[%emt 0:00:04]} Kg6 {[%emt 0:00:19]} 46. Kd7 {[%emt 0:00:04]} Bd5 {[%emt 0:00:05]} 47. Kxc7 {[%emt 0:00:02]} Be4 {[%emt 0:00:01]} 48. Kb6 {[%emt 0:00:02]} Bd5 {[%emt 0:00:03]} 49. Ka5 {[%emt 0:00:02]} Bb3 {[%emt 0:00:01]} 50. Kb6 {[%emt 0:00:01]} Bd5 {[%emt 0:00:01]} 51. Ka5 {[%emt 0:00:02]} Bb3 {[%emt 0:00:01]} 52. Kb6 {[%emt 0:00:09]} Bd5 {[%emt 0:00:02] Weighted Error Value: White=0.11 (very precise) /Black=0.08 (flawless)} 1/2-1/2

[Event "MCCT Chessable Masters 2022"]
[Site "Online"]
[Date "2022.05.16"]
[Round "9.3"]
[White "Ding, Liren"]
[Black "Praggnanandhaa R"]
[Result "1-0"]
[ECO "E51"]
[WhiteElo "2806"]
[BlackElo "2642"]
[Annotator "TA"]
[PlyCount "89"]
[EventDate "2022.05.19"]
[EventType "tourn"]
[EventCountry "NET"]
[SourceTitle "playchess.com"]
[Source "ChessBase"]
[SourceQuality "1"]
[TimeControl "900+10"]

{[%evp 13,89,0,4,3,0,6,15,16,35,-31,-32,-32,-24,-31,-27,-50,-12,-25,0,0,0,-20,0,0,0,0,10,17,21,0,0,0,0,-2,-2,-2,-2,-2,-2,-2,0,0,0,-10,-11,-17,47,42,41,21,157,142,143,170,175,160,150,115,181,174,194,191,218,203,236,172,166,172,170,149,131,114,179,188,1108,1048,981,829]} 1. d4 {[%emt 0:00:00]} Nf6 {[%emt 0:00:00]} 2. c4 {[%emt 0:00:03]} e6 {[%emt 0:00:02]} 3. Nc3 {[%emt 0:00:00]} Bb4 {[%emt 0:00:02]} 4. Nf3 {[%emt 0:00:01]} O-O {[%emt 0:00:12]} 5. e3 {[%emt 0:00:01]} d5 {[%emt 0:00:05]} 6. Bd2 {[%emt 0:00:03]} b6 {[%emt 0:00:04]} 7. cxd5 {[%emt 0:00:01]} exd5 {[%emt 0:00:01]} 8. Rc1 {[%emt 0:00:00] E51: Nimzo-Indian: Rubinstein: 4...0-0 5 Nf3 d5.} Bd6 {[%emt 0:00:42]} 9. Nb5 {[%emt 0:02:20] [#]} c5 $146 {[%emt 0:00:02]} (9... Ne4 {is interesting.} 10. Bd3 c5 11. dxc5 bxc5 12. O-O Nc6) ({Predecessor:} 9... Bg4 10. Be2 Ne4 11. Nxd6 Qxd6 12. O-O Nd7 13. h3 Bh5 14. Qc2 c5 15. dxc5 Ndxc5 {0-1 (40) Bruzon Batista,L (2644)-Bellahcene,B (2540) chess24.com INT 2019}) 10. dxc5 {[%emt 0:00:14] The position is equal.} bxc5 {[%emt 0:00:02]} 11. Be2 {[%emt 0:04:13]} ({White should play} 11. Bc3 $14 Be7 12. Bxf6 gxf6 13. Nc3) 11... Be7 $15 {[%emt 0:01:00]} 12. O-O {[%emt 0:00:34]} a6 {[%emt 0:01:50]} 13. Na3 {[%emt 0:00:47][%cal Bb5a3,Ba3b1,Bb1c3][%mdl 32]} Be6 {[%emt 0:01:19]} 14. Qa4 {[%emt 0:00:50]} Nbd7 {[%emt 0:00:21]} 15. Rfd1 {[%emt 0:00:06]} Ne4 {[%emt 0:02:21]} 16. Nb1 {[%emt 0:00:32]} Qb8 {[%emt 0:03:37]} 17. Nc3 {[%emt 0:00:56]} Ndf6 {[%emt 0:00:35]} 18. Qc2 {[%emt 0:00:56]} Rd8 {[%emt 0:00:41]} 19. Be1 {[%emt 0:00:06]} Qb7 {[%emt 0:00:23]} 20. b3 {[%emt 0:00:20]} Rac8 {[%emt 0:00:39]} 21. Nxe4 {[%emt 0:00:15]} Nxe4 {[%emt 0:00:06]} 22. Ba5 {[%emt 0:00:06]} Rd6 {[%emt 0:00:35]} 23. Bd3 {[%emt 0:00:29]} f5 {[%emt 0:01:27]} 24. Qe2 {[%emt 0:00:54]} Bf6 {[%emt 0:00:24]} 25. Rc2 {[%emt 0:00:15]} Rdc6 {[%emt 0:00:21]} 26. h3 {[%emt 0:00:08]} Nd6 {[%emt 0:00:16] [#] White must now prevent ...c4.} 27. Qe1 {[%emt 0:00:26]} Ne4 {[%emt 0:00:57]} 28. Bf1 {[%emt 0:00:16]} Qa7 {[%emt 0:00:41]} 29. b4 {[%emt 0:00:23]} d4 {[%emt 0:00:25]} ({Better is} 29... c4 $11) 30. bxc5 $14 {[%emt 0:00:18]} dxe3 {[%emt 0:00:04]} 31. Qxe3 {[%emt 0:00:03] [#] Threatens to win with Bb6.} Qf7 {[%emt 0:00:42]} (31... Rxc5 $11 32. Bb4 R5c7 33. Qxa7 Rxa7 34. Rxc8+ Bxc8) 32. Bb4 {[%emt 0:01:06]} Bxa2 {[%emt 0:00:14][%cal Oa6a5]} 33. Nd4 {[%emt 0:00:08]} Bxd4 {[%emt 0:00:05]} 34. Rxd4 {[%emt 0:00:13][%cal Oc2a2] aiming for Rxa2!} (34. Qxd4 $6 Bb3 $14) 34... Be6 {[%emt 0:00:05][%cal Ba2e6,Be6d7,Bd7c6][%mdl 32]} 35. Bd3 {[%emt 0:00:19][%cal Bf1d3,Bd3c2,Bc2b3][%mdl 32]} Nf6 {[%emt 0:00:11]} (35... h6 $16 36. Rc1 (36. Bxe4 fxe4 37. Rxe4 Bd5 $16) 36... Qg6) 36. Ba3 {[%emt 0:00:25]} h6 {[%emt 0:00:22]} 37. Rc1 {[%emt 0:00:22]} Kh8 {[%emt 0:00:11]} 38. Bc2 {[%emt 0:00:09]} Bd7 {[%emt 0:00:12]} 39. Bb3 {[%emt 0:00:08]} Qg6 {[%emt 0:00:07]} 40. Qd3 {[%emt 0:00:15]} R6c7 {[%emt 0:00:07]} 41. Rd6 {[%emt 0:00:10]} ({Resist} 41. Qxa6 $6 Bc6 42. Qf1 Ra8 $14) 41... Bc6 {[%emt 0:00:04][%csl Gc6][%cal Rg6g2]} 42. f3 {[%emt 0:00:01] Strongly threatening Rd8+.} Qg5 {[%emt 0:00:10]} (42... Bb5 $16 43. Qe3 Rd7) 43. Bb2 {[%emt 0:00:07]} Nh5 $2 {[%emt 0:00:06]} (43... Bb5 44. Qd4 Re8) 44. h4 $18 {[%emt 0:00:23]} Qf4 {[%emt 0:00:29]} 45. Rc4 {[%emt 0:00:10] Weighted Error Value: White=0.10 (very precise) /Black=0.19 (very precise)} 1-0

[Event "MCCT Chessable Masters 2022"]
[Site "Online"]
[Date "2022.05.16"]
[Round "9.4"]
[White "Hansen, Eric"]
[Black "Grandelius, Nils"]
[Result "1-0"]
[ECO "B52"]
[WhiteElo "2606"]
[BlackElo "2635"]
[Annotator "TA"]
[PlyCount "79"]
[EventDate "2022.05.19"]
[EventType "tourn"]
[EventCountry "NET"]
[SourceTitle "playchess.com"]
[Source "ChessBase"]
[SourceQuality "1"]
[TimeControl "900+10"]

{[%evp 18,79,0,-8,-8,0,-6,-17,-19,-12,20,32,17,20,25,0,0,0,0,0,0,0,37,0,0,0,2,-57,-17,-19,0,0,0,0,0,0,0,0,70,73,227,0,142,107,383,376,29976,29977,29976,29978,29977,1978,1791,0,29976,0,1793,1531,2472,2066,29983,29984,29984,29985]} 1. e4 {[%emt 0:00:00]} c5 {[%emt 0:00:00]} 2. Nf3 {[%emt 0:00:03]} d6 {[%emt 0:00:03]} 3. Bb5+ {[%emt 0:00:54]} Bd7 {[%emt 0:00:12]} 4. Bxd7+ {[%emt 0:00:08]} Qxd7 {[%emt 0:00:00]} 5. O-O {[%emt 0:00:21]} Nf6 {[%emt 0:00:13]} 6. Re1 {[%emt 0:00:09]} Nc6 {[%emt 0:00:20]} 7. c3 {[%emt 0:00:07]} e6 {[%emt 0:00:04]} 8. d3 {[%emt 0:00:21]} Be7 {[%emt 0:00:28]} 9. Nbd2 {[%emt 0:00:01]} O-O {[%emt 0:00:22]} 10. a4 {[%emt 0:00:46] [#]} Ng4 $146 {[%emt 0:03:12] B52: Sicilian: Moscow Variation with 3...Bd7.} ({Predecessor:} 10... b6 11. h3 Qc7 12. Nf1 {½-½ (12) Klima,L (2334)-Vesselovsky,S (2306) Czech Republic 2020}) 11. d4 {[%emt 0:01:14]} cxd4 {[%emt 0:00:05]} 12. cxd4 {[%emt 0:00:01]} d5 {[%emt 0:01:13] The position is equal.} 13. e5 {[%emt 0:01:23]} f6 {[%emt 0:00:42]} 14. h3 {[%emt 0:01:16]} Nh6 {[%emt 0:00:04]} 15. Nb3 {[%emt 0:01:12]} fxe5 {[%emt 0:02:10]} 16. Nxe5 {[%emt 0:00:03]} (16. Bxh6 {feels hotter.} e4 17. Ne5 Nxe5 18. dxe5 gxh6 19. Rxe4 b6 20. Re3) 16... Nxe5 {[%emt 0:00:04]} 17. Rxe5 {[%emt 0:00:00]} Nf5 {[%emt 0:01:07]} 18. Nc5 {[%emt 0:00:35]} Bxc5 {[%emt 0:00:47]} 19. dxc5 {[%emt 0:00:00]} Ne7 {[%emt 0:03:59]} 20. Qg4 {[%emt 0:06:52]} Rf6 {[%emt 0:00:03]} 21. Rg5 {[%emt 0:00:24]} Nf5 {[%emt 0:00:52]} 22. Bf4 {[%emt 0:00:22] Prevents Qc7.} (22. Qe2 $11) 22... h6 {[%emt 0:00:36]} (22... Rc8 $5 {[%cal Rc8c5]}) 23. Rg6 {[%emt 0:00:31] And now Rxf6 would win.} Rxg6 {[%emt 0:00:21]} 24. Qxg6 {[%emt 0:00:02]} Qf7 {[%emt 0:00:00]} 25. Qg4 {[%emt 0:00:03]} Rc8 {[%emt 0:00:24]} 26. b4 {[%emt 0:00:09]} a5 {[%emt 0:00:07]} 27. Be5 {[%emt 0:00:06]} Ne7 {[%emt 0:01:02]} (27... h5 $11 28. Qf4 Qd7) 28. Ra3 $1 $14 {[%emt 0:02:14] 0x0.001a281b8c75dp-1022s more active pieces.} Nc6 $2 {[%emt 0:00:52] [#]} (28... axb4 $16 29. Rf3 Nf5) 29. Bb2 $2 {[%emt 0:00:01]} ({White must play} 29. Bxg7 $1 $18 {[%mdl 512]} Qf5 (29... Kh7 30. Bb2) 30. Qg3 (30. Bxh6+ Qxg4 31. hxg4 axb4 $11)) 29... axb4 {[%emt 0:00:09] [#]} (29... h5 $11 {keeps the balance.} 30. Qg5 axb4) 30. Rf3 $1 $16 {[%emt 0:00:04]} Qe7 {[%emt 0:00:03][%mdl 8192]} (30... h5 $16 31. Rxf7 hxg4 32. Rxg7+ Kf8) 31. Bxg7 $18 {[%emt 0:00:04] White wants to mate with Bf6+.} h5 $2 {[%emt 0:00:03] [#]} (31... Kh7 $18) 32. Qg6 $1 {[%emt 0:00:03]} Qxg7 {[%emt 0:00:41]} 33. Qxe6+ {[%emt 0:00:01]} Kh7 {[%emt 0:00:00]} 34. Qf5+ {[%emt 0:00:22]} (34. Rf5 $142 Qg6 35. Rf7+ Qxf7 36. Qxf7+ Kh8 37. Qf6+ Kg8 38. Qe6+ Kg7 39. Qxc8) 34... Kh6 {[%emt 0:00:12]} 35. Qe6+ {[%emt 0:00:35]} (35. Qxc8 $18 Ne5 36. Qe6+ Ng6 37. Qe3+ Kh7 38. Rf5) 35... Kh7 {[%emt 0:00:06]} 36. Qf5+ {[%emt 0:00:30]} (36. Rf5 $142 Qg6 37. Rf7+ Qxf7 38. Qxf7+ Kh8 39. Qf6+ Kg8 40. Qe6+ Kg7 41. Qxc8) 36... Kh6 {[%emt 0:00:01]} 37. Qxc8 {[%emt 0:00:01]} Nd4 {[%emt 0:00:00] Against Qe6+} 38. Rf8 {[%emt 0:00:11] Rh8+ would kill now.} Kh7 {[%emt 0:00:36] Against Rh8+} 39. Qe8 {[%emt 0:00:09]} Ne2+ {[%emt 0:00:13]} 40. Kh2 {[%emt 0:00:14] Weighted Error Value: White=0.83/Black=0.69} 1-0

[Event "MCCT Chessable Masters 2022"]
[Site "Online"]
[Date "2022.05.16"]
[Round "9.5"]
[White "Mamedyarov, Shakhriyar"]
[Black "Tari, Aryan"]
[Result "1/2-1/2"]
[ECO "D90"]
[WhiteElo "2770"]
[BlackElo "2654"]
[Annotator "TA"]
[PlyCount "135"]
[EventDate "2022.05.19"]
[EventType "tourn"]
[EventCountry "NET"]
[SourceTitle "playchess.com"]
[Source "ChessBase"]
[SourceQuality "1"]
[TimeControl "900+10"]

{[%evp 9,135,0,38,24,37,16,16,22,20,26,23,19,25,20,15,18,17,0,0,0,0,0,0,0,0,0,0,0,31,26,21,20,19,5,5,5,5,0,0,0,0,0,0,0,0,0,0,0,0,0,10,6,7,0,10,0,5,0,54,54,83,83,83,83,83,84,84,77,77,77,77,77,77,77,77,77,77,77,77,77,77,77,77,77,77,77,77,77,77,77,77,77,77,77,77,77,77,25,25,0,0,0,0,0,0,0,0,0,0,0,0,0,0,0,0,0,0,0,0,0,0,0,0,0,0,0,0,0]} 1. d4 {[%emt 0:00:00]} Nf6 {[%emt 0:00:00]} 2. c4 {[%emt 0:00:03]} g6 {[%emt 0:00:02]} 3. Nc3 {[%emt 0:00:03]} d5 {[%emt 0:00:02]} 4. Nf3 {[%emt 0:00:01]} Bg7 {[%emt 0:00:01]} 5. h4 {[%emt 0:00:01]} c5 {[%emt 0:00:29]} 6. dxc5 {[%emt 0:00:07][%cal Rc4d5] D90: Grünfeld: 4 Nf3 Bg7 sidelines.} O-O {[%emt 0:00:20] 6...Be6 is the modern continuation.} 7. cxd5 {[%emt 0:00:28]} Na6 $1 {[%emt 0:00:01][%cal Bb8a6,Ba6c5,Bc5e4][%mdl 32]} 8. g3 $1 {[%emt 0:00:59]} Nxc5 {[%emt 0:00:09]} 9. Bg2 {[%emt 0:00:02]} Bf5 {[%emt 0:01:06] [#]} 10. Nd4 $146 {[%emt 0:01:45]} ({Predecessor:} 10. O-O Nce4 11. Nxe4 Bxe4 12. d6 Qxd6 13. Qxd6 exd6 14. Rd1 Bc2 15. Rd2 Rac8 16. Ne1 {½-½ (30) Tabatabaei,M (2642)-Xiong,J (2707) Khanty-Mansiysk 2019}) 10... Be4 {[%emt 0:01:17]} 11. Nxe4 {[%emt 0:00:13]} Ncxe4 {[%emt 0:01:20]} 12. Nb3 {[%emt 0:00:05]} e6 {[%emt 0:01:27]} 13. d6 {[%emt 0:02:24]} a5 {[%emt 0:01:21][%cal Ba7a5,Ba5a4,Ba4b3][%mdl 32]} 14. Qd3 {[%emt 0:02:30]} a4 {[%emt 0:01:06]} 15. Bxe4 {[%emt 0:00:03]} Nxe4 {[%emt 0:00:06]} 16. Qxe4 {[%emt 0:00:00] [#] Bg5 is the strong threat.} axb3 {[%emt 0:00:02]} 17. a4 {[%emt 0:00:32]} Qxd6 {[%emt 0:01:37]} 18. O-O {[%emt 0:00:56]} Qa6 {[%emt 0:01:50]} 19. Ra3 {[%emt 0:00:30]} Qc6 {[%emt 0:01:02]} 20. Qb4 {[%emt 0:01:24]} Ra6 {[%emt 0:00:17]} 21. Rxb3 {[%emt 0:01:17]} Rxa4 {[%emt 0:00:11][%cal Ba6a4,Ba4d4,Bd4d5,Bd5b5][%mdl 32]} 22. Qxb7 {[%emt 0:00:01]} Qc2 {[%emt 0:00:36]} 23. Qb5 {[%emt 0:00:37]} Rd4 {[%emt 0:01:04]} 24. Rc3 {[%emt 0:00:42]} Qe4 {[%emt 0:00:03]} 25. Re3 {[%emt 0:00:48]} Qc2 {[%emt 0:00:08]} 26. b3 {[%emt 0:01:18]} Rd5 {[%emt 0:01:00]} 27. Qc4 {[%emt 0:01:51]} Rc8 {[%emt 0:00:58]} 28. Qxc2 {[%emt 0:00:33]} Rxc2 {[%emt 0:00:00]} 29. Re4 {[%emt 0:00:16]} Rb5 {[%emt 0:00:39]} 30. Rd1 {[%emt 0:00:06] [#] Threatening mate with Rd8+.} Rd5 {[%emt 0:00:02] Inhibits Rd8+.} (30... Rxb3 {leads to mate.} 31. Rd8+ Bf8 32. Bh6 Rb1+ 33. Kg2) 31. Rf1 {[%emt 0:00:06]} Rb5 {[%emt 0:00:02]} 32. b4 {[%emt 0:00:35]} Bf8 {[%emt 0:01:08]} 33. Rd4 {[%emt 0:00:12]} Be7 {[%emt 0:00:50]} (33... Rxb4 $2 34. Rd8 Kg7 35. Ba3 $18) (33... Rxe2 $11 34. Bd2 Rf5) 34. Bd2 $14 {[%emt 0:00:06]} Rd5 {[%emt 0:00:21]} 35. Rxd5 {[%emt 0:00:04]} exd5 $16 {[%emt 0:00:00][%mdl 4096] Endgame KRB-KRB} 36. Rd1 {[%emt 0:00:01]} Rb2 {[%emt 0:00:02]} 37. Bc3 {[%emt 0:00:06]} Rb3 {[%emt 0:00:02]} 38. Rd3 {[%emt 0:00:03]} Bxb4 {[%emt 0:00:11]} 39. Bxb4 {[%emt 0:00:01]} Rxb4 {[%emt 0:00:00]} 40. Rxd5 {[%emt 0:00:02] KR-KR} h5 {[%emt 0:00:00]} 41. Kg2 {[%emt 0:00:02]} Kg7 {[%emt 0:00:01]} 42. Kf3 {[%emt 0:00:04]} Rb3+ {[%emt 0:00:01]} 43. e3 {[%emt 0:00:02]} Rb4 {[%emt 0:00:01]} 44. Rd3 {[%emt 0:00:05]} Ra4 {[%emt 0:00:01]} 45. e4 {[%emt 0:00:05]} Ra2 {[%emt 0:00:03]} 46. Ke3 {[%emt 0:00:02]} Ra1 {[%emt 0:00:01]} 47. f3 {[%emt 0:00:02]} Rb1 {[%emt 0:00:05]} 48. Kf4 {[%emt 0:00:05]} Rb6 {[%emt 0:00:06]} 49. Rd7 {[%emt 0:00:04]} Rf6+ {[%emt 0:00:02]} 50. Ke3 {[%emt 0:00:02]} Ra6 {[%emt 0:00:01]} 51. Rd3 {[%emt 0:00:43]} Ra5 {[%emt 0:00:11]} 52. Kf4 {[%emt 0:00:10]} Ra7 {[%emt 0:00:07]} 53. g4 {[%emt 0:00:08]} ({White should try} 53. Rc3 $16) 53... hxg4 $11 {[%emt 0:00:05]} 54. fxg4 {[%emt 0:00:00]} Ra1 {[%emt 0:00:21] The position is equal.} 55. h5 {[%emt 0:00:43]} Rh1 {[%emt 0:00:19]} 56. Rd5 {[%emt 0:00:21]} gxh5 {[%emt 0:00:23]} 57. gxh5 {[%emt 0:00:03]} Rf1+ {[%emt 0:00:15]} 58. Ke5 {[%emt 0:00:10]} Kh6 {[%emt 0:00:16]} 59. Kd4 {[%emt 0:00:05]} Rd1+ {[%emt 0:00:14]} 60. Ke5 {[%emt 0:00:14]} Rf1 {[%emt 0:00:04]} 61. Kd6 {[%emt 0:00:01]} Rf6+ {[%emt 0:00:21]} 62. Kc5 {[%emt 0:00:03]} Rf1 {[%emt 0:00:05]} 63. Re5 {[%emt 0:00:09]} Rh1 {[%emt 0:00:25]} 64. Kd6 {[%emt 0:00:10] aiming for Ke7.} Rxh5 {[%emt 0:00:03]} 65. Rxh5+ {[%emt 0:00:02]} Kxh5 {[%emt 0:00:00]} 66. e5 {[%emt 0:00:01]} Kg6 {[%emt 0:00:02]} 67. e6 {[%emt 0:00:00]} fxe6 {[%emt 0:00:01]} 68. Kxe6 {[%emt 0:00:00] Weighted Error Value: White=0.02 (flawless) /Black=0.04 (flawless)} 1/2-1/2